fUST/lending_fUST_20260204
["ID","MTS","AMOUNT","RATE_DAILY","PERIOD"]
[404483738,1770198631841,-896.76875741,0.00014661,2]
[404483739,1770198631851,-201.31583337,0.00014835,2]
[404483741,1770198631860,-300.0,0.0001488,2]
[404483742,1770198631870,-254.0,0.0001488,2]
[404483745,1770198631879,-300.0,0.0001488,2]
[404483754,1770198632036,-500.0,0.00014881,2]
[404483755,1770198632053,-500.0,0.00014881,2]
[404483756,1770198632063,-500.0,0.00014881,2]
[404483757,1770198632072,-489.34256625,0.00014881,2]
[404483758,1770198632082,-500.0,0.00014881,2]
[404483759,1770198632091,-500.0,0.00014881,2]
[404483760,1770198632100,-500.0,0.00014881,2]
[404483761,1770198632109,-500.0,0.00014881,2]
[404483762,1770198632119,-500.0,0.00014881,2]
[404483763,1770198632128,-242.30932662,0.00014881,2]
[404483764,1770198632140,-257.69067338,0.00014881,2]
[404483765,1770198632149,-500.0,0.00014881,2]
[404483766,1770198632158,-500.0,0.00014881,2]
[404483767,1770198632168,-203.92694974,0.00014881,2]
[404483768,1770198632179,-296.07305026,0.00014881,2]
[404483769,1770198632188,-500.0,0.00014881,2]
[404483770,1770198632198,-500.0,0.00014881,2]
[404483771,1770198632207,-500.0,0.00014881,2]
[404483772,1770198632216,-500.0,0.00014881,2]
[404483773,1770198632226,-500.0,0.00014881,2]
[404483774,1770198632235,-500.0,0.00014881,2]
[404483775,1770198632244,-500.0,0.00014881,2]
[404483776,1770198632254,-500.0,0.00014881,2]
[404483777,1770198632263,-500.0,0.00014881,2]
[404483778,1770198632272,-500.0,0.00014881,2]
[404483779,1770198632281,-346.98638979,0.00014881,2]
[404483780,1770198632289,-500.0,0.00014881,2]
[404483781,1770198632298,-500.0,0.00014881,2]
[404483782,1770198632311,-416.38867737,0.00014881,2]
[404483794,1770198638619,-83.61132263,0.00014881,2]
[404483795,1770198638629,-500.0,0.00014881,2]
[404483796,1770198638639,-500.0,0.00014881,2]
[404483797,1770198638648,-500.0,0.00014881,2]
[404483798,1770198638658,-500.0,0.00014881,2]
[404483799,1770198638667,-500.0,0.00014881,2]
[404483800,1770198638676,-500.0,0.00014881,2]
[404483801,1770198638686,-500.0,0.00014881,2]
[404483802,1770198638695,-500.0,0.00014881,2]
[404483803,1770198638705,-500.0,0.00014881,2]
[404483804,1770198638714,-500.0,0.00014881,2]
[404483805,1770198638723,-500.0,0.00014881,2]
[404483807,1770198638732,-500.0,0.00014881,2]
[404483808,1770198638741,-500.0,0.00014881,2]
[404483809,1770198638751,-500.0,0.00014881,2]
[404483810,1770198638760,-500.0,0.00014881,2]
[404483811,1770198638769,-500.0,0.00014881,2]
[404483812,1770198638779,-500.0,0.00014881,2]
[404483813,1770198638788,-500.0,0.00014881,2]
[404483814,1770198638798,-500.0,0.00014881,2]
[404483815,1770198638807,-500.0,0.00014881,2]
[404483816,1770198638816,-378.4659832,0.00014881,2]
[404483824,1770198640370,-0.00385739,0.00014881,2]
[404483862,1770198646153,-121.53015941,0.00014881,2]
[404483863,1770198646163,-215.61526089,0.00014881,2]
[404483864,1770198646172,-500.0,0.00014881,2]
[404483865,1770198646181,-500.0,0.00014881,2]
[404483866,1770198646190,-500.0,0.00014881,2]
[404483867,1770198646199,-226.03899035,0.00014881,2]
[404483869,1770198646209,-499.99999999,0.00014881,2]
[404483871,1770198646218,-500.0,0.00014881,2]
[404483872,1770198646227,-500.0,0.00014881,2]
[404483874,1770198646235,-500.0,0.00014881,2]
[404483875,1770198646244,-500.0,0.00014881,2]
[404483877,1770198646253,-500.0,0.00014881,2]
[404483880,1770198646263,-500.0,0.00014881,2]
[404483882,1770198646271,-500.0,0.00014881,2]
[404483884,1770198646280,-500.0,0.00014881,2]
[404483886,1770198646289,-294.53734796,0.00014881,2]
[404483888,1770198646298,-500.0,0.00014881,2]
[404483890,1770198646308,-500.0,0.00014881,2]
[404483891,1770198646319,-500.0,0.00014881,2]
[404483893,1770198646329,-500.0,0.00014881,2]
[404483894,1770198646339,-500.0,0.00014881,2]
[404483896,1770198646348,-500.0,0.00014881,2]
[404483898,1770198646358,-500.0,0.00014881,2]
[404483900,1770198646368,-500.0,0.00014881,2]
[404483901,1770198646377,-500.0,0.00014881,2]
[404483902,1770198646388,-204.9303591,0.00014882,2]
[404483904,1770198646400,-22132.9149908,0.00014882,2]
[404483906,1770198646409,-3282.99779771,0.00014883,2]
[404483908,1770198646418,-3579.9345892,0.00014884,2]
[404483909,1770198646427,-500.0,0.00015145,2]
[404483910,1770198646439,-454.29319697,0.00015145,2]
[404483911,1770198646449,-948.78118221,0.00015418,2]
[404483912,1770198646458,-695.22785797,0.00015584,2]
[404483913,1770198646468,-1109.2982289,0.00015691,2]
[404483914,1770198646478,-5344.6019577,0.00015713,2]
[404483915,1770198646487,-500.0,0.00015747,2]
[404483916,1770198646497,-500.0,0.00015748,2]
[404483917,1770198646507,-203.42721891,0.0001589,2]
[404483918,1770198646516,-500.0,0.00015964,2]
[404483919,1770198646526,-8656.5485708,0.00015965,2]
[404483920,1770198646536,-177.0,0.00016127,2]
[404483921,1770198646545,-1790.953158,0.00016203,2]
[404483922,1770198646555,-500.0,0.00016268,2]
[404483923,1770198646564,-1000.0,0.00016268,2]
[404483924,1770198646573,-500.0,0.00016268,2]
[404483925,1770198646582,-1000.0,0.00016268,2]
[404483926,1770198646592,-250.0,0.00016268,2]
[404483927,1770198646603,-500.0,0.00016268,2]
[404483928,1770198646612,-1000.0,0.00016268,2]
[404483929,1770198646622,-250.0,0.00016268,2]
[404483930,1770198646632,-500.0,0.00016268,2]
[404483931,1770198646641,-1000.0,0.00016268,2]
[404483932,1770198646652,-250.0,0.00016268,2]
[404483933,1770198646661,-500.0,0.00016268,2]
[404483934,1770198646670,-1000.0,0.00016268,2]
[404483935,1770198646679,-250.0,0.00016268,2]
[404483936,1770198646689,-500.0,0.00016268,2]
[404483937,1770198646699,-421.06576598,0.00016268,2]
[404483938,1770198646707,-1000.0,0.00016268,2]
[404483939,1770198646716,-250.0,0.00016268,2]
[404483940,1770198646726,-500.0,0.00016268,2]
[404483941,1770198646735,-1000.0,0.00016268,2]
[404483942,1770198646745,-250.0,0.00016268,2]
[404483943,1770198646756,-500.0,0.00016268,2]
[404483944,1770198646767,-1000.0,0.00016268,2]
[404483945,1770198646776,-250.0,0.00016268,2]
[404483946,1770198646785,-500.0,0.00016268,2]
[404483947,1770198646795,-500.0,0.00016268,2]
[404483948,1770198646804,-1000.0,0.00016268,2]
[404483949,1770198646814,-250.0,0.00016268,2]
[404483950,1770198646823,-209.40437684,0.00016268,2]
[404483951,1770198646833,-500.0,0.00016268,2]
[404483952,1770198646842,-500.0,0.00016268,2]
[404483953,1770198646852,-1000.0,0.00016268,2]
[404483954,1770198646861,-250.0,0.00016268,2]
[404483955,1770198646870,-217.15233878,0.00016268,2]
[404483956,1770198646880,-500.0,0.00016268,2]
[404483957,1770198646891,-500.0,0.00016268,2]
[404483958,1770198646901,-1000.0,0.00016268,2]
[404483959,1770198646911,-250.0,0.00016268,2]
[404483960,1770198646920,-500.0,0.00016268,2]
[404483961,1770198646930,-225.18697532,0.00016268,2]
[404483962,1770198646939,-250.0,0.00016268,2]
[404483963,1770198646948,-500.0,0.00016268,2]
[404483964,1770198646958,-233.51889341,0.00016268,2]
[404483965,1770198646967,-500.0,0.00016268,2]
[404483966,1770198646977,-242.15909246,0.00016268,2]
[404483967,1770198646986,-500.0,0.00016268,2]
[404483968,1770198646995,-251.11897888,0.00016268,2]
[404483969,1770198647005,-500.0,0.00016268,2]
[404483970,1770198647014,-260.4103811,0.00016268,2]
[404483971,1770198647024,-500.0,0.00016268,2]
[404483972,1770198647033,-270.0455652,0.00016268,2]
[404483973,1770198647043,-500.0,0.00016268,2]
[404483974,1770198647052,-280.03725112,0.00016268,2]
[404483975,1770198647062,-500.0,0.00016268,2]
[404483976,1770198647071,-290.39862941,0.00016268,2]
[404483977,1770198647081,-250.0,0.00016268,2]
[404483978,1770198647090,-317.86915881,0.00016268,2]
[404483979,1770198647100,-250.0,0.00016268,2]
[404483980,1770198647109,-250.0,0.00016268,2]
[404483981,1770198647127,-250.0,0.00016268,2]
[404483982,1770198647138,-343.63286789,0.00016268,2]
[404483983,1770198647149,-250.0,0.00016268,2]
[404483984,1770198647158,-250.0,0.00016268,2]
[404483985,1770198647168,-250.0,0.00016268,2]
[404483986,1770198647177,-250.0,0.00016268,2]
[404483987,1770198647187,-250.0,0.00016268,2]
[404483988,1770198647196,-250.0,0.00016268,2]
[404483989,1770198647206,-250.0,0.00016268,2]
[404483990,1770198647215,-250.0,0.00016268,2]
[404483991,1770198647225,-250.0,0.00016268,2]
[404483993,1770198647235,-250.0,0.00016268,2]
[404483995,1770198647244,-250.0,0.00016268,2]
[404483997,1770198647254,-250.0,0.00016268,2]
[404483999,1770198647264,-250.0,0.00016268,2]
[404484001,1770198647274,-250.0,0.00016268,2]
[404484002,1770198647284,-250.0,0.00016268,2]
[404484003,1770198647294,-250.0,0.00016268,2]
[404484004,1770198647303,-250.0,0.00016268,2]
[404484005,1770198647316,-420.0,0.00016287,2]
[404484006,1770198647326,-152.6597683,0.00016357,2]
[404484007,1770198647337,-8997.7451237,0.00016358,2]
[404484008,1770198647347,-3149.09,0.00016399,3]
[404484009,1770198647357,-393.64,0.00016399,3]
[404484010,1770198647367,-196.82,0.00016399,3]
[404484011,1770198647377,-590.47,0.00016399,3]
[404484012,1770198647386,-151.0,0.000164,2]
[404484013,1770198647397,-5674.6,0.00016409,3]
[404484014,1770198647407,-1574.55,0.00016409,3]
[404484015,1770198647416,-787.27,0.00016409,3]
[404484016,1770198647427,-11901.6710565,0.00016419,2]
[404484018,1770198904089,500.0,0.00013699,2]
[404484020,1770199587765,493.7958009,0.00013762,2]
[404484021,1770199652764,14673.3841109,0.00013434,2]
[404484022,1770199682308,5000.0,0.00014,2]
[404484038,1770199838035,-1031.4,0.00014177,2]
[404484039,1770199838086,-3667.1204646,0.00014177,2]
[404484040,1770199838096,-150.0,0.00014212,2]
[404484041,1770199838106,-501.06734588,0.00014247,2]
[404484042,1770199838116,-300.0,0.00014381,2]
[404484043,1770199838126,-272.0,0.00014381,2]
[404484044,1770199838135,-24.52786646,0.00014381,2]
[404484045,1770199838147,-1175.47213354,0.00014381,2]
[404484046,1770199838157,-500.0,0.00014382,2]
[404484047,1770199838167,-500.0,0.00014382,2]
[404484048,1770199838176,-500.0,0.00014382,2]
[404484049,1770199838185,-594.10959887,0.00014382,2]
[404484050,1770199838195,-500.0,0.00014382,2]
[404484051,1770199838205,-651.01526088,0.00014382,2]
[404484052,1770199838216,-332.14917403,0.00014382,2]
[404484053,1770199838226,-7157.20711052,0.00014383,2]
[404484062,1770199840350,-1119.60014032,0.00014383,2]
[404484067,1770200376838,169.96308357,0.00013862,2]
[404484068,1770200379726,375.70204188,0.00013862,2]
[404484069,1770200382750,676.26367538,0.00013862,2]
[404484070,1770200628352,461.43805623,0.00013862,2]
[404484071,1770200631747,469.18227477,0.00013862,2]
[404484072,1770200635045,844.52809459,0.00013862,2]
[404484073,1770200638320,830.58850122,0.00013862,2]
[404484074,1770200641263,278.84590447,0.00013862,2]
[404484075,1770200645101,501.92262805,0.00013862,2]
[404484076,1770200679754,325.42493882,0.00013307,2]
[404484077,1770200682616,585.76488987,0.00013307,2]
[404484078,1770200721230,198.0,0.00039882,30]
[404484083,1770200871064,3145.93933183,0.00012,5]
[404484084,1770200871103,14733.92180684,0.00012,5]
[404484085,1770200937748,340.56097569,0.00013307,2]
[404484086,1770200941007,613.00975623,0.00013307,2]
[404484087,1770201003170,13109.28,0.0001,30]
[404484123,1770201038264,-150.0,0.00014147,2]
[404484124,1770201038274,-168.38916136,0.00014383,2]
[404484125,1770201038283,-1000.0,0.00014563,2]
[404484126,1770201038292,-252.26374825,0.00014661,2]
[404484127,1770201038302,-3956.93336417,0.00014719,2]
[404484128,1770201038312,-494.54764779,0.00014805,2]
[404484129,1770201038321,-191.0,0.00014817,2]
[404484130,1770201038331,-300.0,0.00014817,2]
[404484131,1770201038340,-1200.0,0.00014817,2]
[404484132,1770201038350,-500.0,0.00014817,2]
[404484133,1770201038359,-500.0,0.00014817,2]
[404484134,1770201038369,-500.0,0.00014817,2]
[404484135,1770201038378,-431.10858888,0.00014817,2]
[404484136,1770201038387,-500.0,0.00014817,2]
[404484137,1770201038398,-500.0,0.00014817,2]
[404484138,1770201038408,-520.78439888,0.00014817,2]
[404484139,1770201038418,-500.0,0.00014817,2]
[404484140,1770201038428,-501.23387845,0.00014817,2]
[404484141,1770201038437,-500.0,0.00014817,2]
[404484142,1770201038446,-500.0,0.00014817,2]
[404484143,1770201038456,-500.0,0.00014817,2]
[404484144,1770201038465,-500.0,0.00014817,2]
[404484145,1770201038474,-500.0,0.00014817,2]
[404484146,1770201038483,-500.0,0.00014817,2]
[404484147,1770201038493,-500.0,0.00014817,2]
[404484148,1770201038502,-500.0,0.00014817,2]
[404484149,1770201038512,-500.0,0.00014817,2]
[404484150,1770201038521,-645.14792832,0.00014817,2]
[404484151,1770201038530,-500.0,0.00014817,2]
[404484152,1770201038540,-500.0,0.00014817,2]
[404484153,1770201038549,-465.10152608,0.00014817,2]
[404484154,1770201038559,-171.5951366,0.00014817,2]
[404484155,1770201038569,-500.0,0.00014817,2]
[404484156,1770201038578,-253.73889261,0.00014818,2]
[404484157,1770201038587,-556.05640422,0.00014818,2]
[404484158,1770201038596,-970.99977541,0.00014819,2]
[404484159,1770201038608,-2432.53782515,0.00014819,2]
[404484240,1770201046650,-12733.17520486,0.00014819,2]
[404484241,1770201064436,-505.8883265,0.00014684,2]
[404484242,1770201064462,-504.31809803,0.00014818,2]
[404484243,1770201064483,-505.8883265,0.00014819,2]
[404484244,1770201064498,-504.31809803,0.00014819,2]
[404484245,1770201064510,-133.43286057,0.00014819,2]
[404484247,1770201341885,-439.95560868,0.00014522,2]
[404484248,1770201343942,-190.01813508,0.00014522,2]
[404484249,1770201355691,-194.22311622,0.00014522,2]
[404484250,1770201430782,-485.40296749,0.00014377,2]
[404484251,1770201434658,-178.05181588,0.00014377,2]
[404484252,1770201436156,-280.56335171,0.00014377,2]
[404484254,1770201438867,-555.98186492,0.00014377,2]
[404484255,1770201490905,-500.0,0.00014233,2]
[404484256,1770201494063,-353.34966211,0.00014233,2]
[404484257,1770201496085,-514.5990876,0.00014233,2]
[404484258,1770201520700,-106.88160902,0.00014233,2]
[404484259,1770201520721,-462.38248518,0.00014377,2]
[404484260,1770201522211,-500.0,0.00014377,2]
[404484261,1770201524886,-500.0,0.00014377,2]
[404484262,1770201536413,-500.0,0.00014064,2]
[404484263,1770201537989,-117.59842776,0.00014064,2]
[404484264,1770201538012,-229.97435057,0.00014064,2]
[404484265,1770201541627,-185.0,0.00014064,2]
[404484266,1770201546109,-192.43013456,0.00014064,2]
[404484267,1770201546132,-150.0,0.00014149,2]
[404484268,1770201546162,-157.56986544,0.00014233,2]
[404484269,1770201550508,-500.0,0.00014233,2]
[404484270,1770201552244,-321.94818412,0.00014233,2]
[404484273,1770201581343,-219.02930578,0.0001378,2]
[404484274,1770201611183,2689.78625382,0.00013694,2]
[404484275,1770201643637,201.94780182,0.00039879,120]
[404484276,1770201670813,-294.89242398,0.00013699,2]
[404484277,1770201676941,500.0,0.00013273,2]
[404484278,1770201685776,-205.10757602,0.00013699,2]
[404484279,1770201685800,-135.16336122,0.0001378,2]
[404484280,1770201685822,-3.48610909,0.00013821,2]
[404484281,1770201724850,1710.37888427,0.00013699,2]
[404484282,1770201728128,500.0,0.00013273,2]
[404484283,1770201728998,-195.55068325,0.00013821,2]
[404484284,1770201729023,-102.83889594,0.00013821,2]
[404484285,1770201730443,-490.79535821,0.00013821,2]
[404484286,1770201733773,500.0,0.00013273,2]
[404484287,1770201735294,-406.36574585,0.00013821,2]
[404484288,1770201735316,-385.62978784,0.00013821,2]
[404484289,1770201799078,500.0,0.00013273,2]
[404484290,1770201800468,-131.93158298,0.00013821,2]
[404484291,1770201800491,-85.36492357,0.00013821,2]
[404484292,1770201808129,-347.37558881,0.00013821,2]
[404484294,1770201848804,474.8451613,0.00013273,2]
[404484295,1770201854237,217.29650655,0.00013273,2]
[404484296,1770201854970,500.0,0.00013273,2]
[404484297,1770201860123,5357.8394242,0.00013688,2]
[404484298,1770201908183,239.65002368,0.00013273,2]
[404484299,1770201908207,107.72556513,0.00013273,2]
[404484300,1770201908687,562.78635208,0.00013273,2]
[404484301,1770201921394,567.25948762,0.00013273,2]
[404484302,1770201965563,500.0,0.00013273,2]
[404484303,1770201966254,500.0,0.00013273,2]
[404484304,1770201966281,500.0,0.00013273,2]
[404484305,1770201966324,500.0,0.00013273,2]
[404484306,1770201966375,500.80139127,0.00013273,2]
[404484307,1770201966901,-182.78933403,0.00013821,2]
[404484308,1770201966924,-98.814848,0.00013821,2]
[404484309,1770201969496,395.23872477,0.00013273,2]
[404484310,1770201969610,-380.37699242,0.00013821,2]
[404484311,1770201975574,500.0,0.00013273,2]
[404484312,1770201985692,-212.40209114,0.00013821,2]
[404484313,1770201985716,-23.15757395,0.00013821,2]
[404484314,1770201990611,-358.66219258,0.00013821,2]
[404484315,1770202030742,-500.0,0.00013699,2]
[404484316,1770202030766,-318.23720939,0.00013821,2]
[404484317,1770202032476,235.55966509,0.00013273,2]
[404484318,1770202032764,-158.72577051,0.00013821,2]
[404484319,1770202039976,380.37699242,0.00013273,2]
[404484320,1770202040175,500.0,0.00013273,2]
[404484321,1770202041247,-141.21725357,0.00013821,2]
[404484322,1770202041269,-27.85136136,0.00013821,2]
[404484323,1770202043769,-345.02686426,0.00013821,2]
[404484324,1770202083932,500.0,0.00013273,2]
[404484325,1770202089876,591.99943059,0.00013273,2]
[404484326,1770202091257,-127.12177438,0.00013821,2]
[404484327,1770202091280,-291.2364999,0.00013821,2]
[404484328,1770202093418,-240.1663406,0.00013821,2]
[404484329,1770202094547,500.0,0.00013273,2]
[404484330,1770202094894,-251.60112835,0.00013821,2]
[404484331,1770202098203,-167.86561034,0.00013821,2]
[404484332,1770202098226,-231.47352697,0.00013821,2]
[404484333,1770202136066,367.05306541,0.00013619,2]
[404484334,1770202143375,501.28742742,0.00013273,2]
[404484335,1770202143479,535.73689277,0.00013273,2]
[404484336,1770202146381,500.0,0.00013273,2]
[404484337,1770202150709,-144.52899435,0.00013821,2]
[404484338,1770202150738,-64.84299196,0.00013821,2]
[404484339,1770202150883,500.0,0.00013273,2]
[404484355,1770202152515,262.34431299,0.00013273,2]
[404484356,1770202153428,-221.3689794,0.00013821,2]
[404484357,1770202160432,418.35827428,0.00013273,2]
[404484358,1770202160459,-201.2647333,0.00013821,2]
[404484359,1770202160808,500.0,0.00013273,2]
[404484373,1770202166834,-335.58997883,0.00013821,2]
[404484408,1770202168347,-152.62441119,0.00013821,2]
[404484446,1770202169796,-24.30890532,0.00013821,2]
[404484448,1770202169826,-402.86489699,0.00013821,2]
[404484581,1770202180497,428.36641828,0.00013619,2]
[404484582,1770202208060,500.0,0.00013699,2]
[404484583,1770202214177,500.0,0.00013273,2]
[404484584,1770202217726,500.0,0.00013273,2]
[404484585,1770202218539,-97.13510301,0.00013821,2]
[404484586,1770202218570,-157.1791818,0.00013821,2]
[404484587,1770202223598,-664.41002117,0.00013821,2]
[404484588,1770202225798,-158.88547344,0.00013821,2]
[404484589,1770202225820,-212.53856378,0.00013821,2]
[404484590,1770202227560,-181.76279061,0.00013821,2]
[404484591,1770202230134,-389.13960131,0.00013821,2]
[404484629,1770202241317,-3e-08,0.00013821,2]
[404484630,1770202242395,2894.86417826,0.00013699,2]
[404484631,1770202242417,2105.13582174,0.00013699,2]
[404484651,1770202246587,-112.7778861,0.00013821,2]
[404484653,1770202246598,-150.0,0.00013837,2]
[404484655,1770202246608,-170.499589,0.00013853,2]
[404484656,1770202246617,-1000.0,0.00014247,2]
[404484658,1770202246627,-1000.0,0.00014247,2]
[404484659,1770202246637,-448.29042879,0.00014336,2]
[404484660,1770202246646,-170.499589,0.00014338,2]
[404484661,1770202246655,-500.0,0.00014368,2]
[404484662,1770202246664,-300.0,0.00014703,2]
[404484663,1770202246674,-500.0,0.00014703,2]
[404484664,1770202246683,-500.0,0.00014703,2]
[404484665,1770202246692,-500.0,0.00014703,2]
[404484666,1770202246702,-500.0,0.00014703,2]
[404484667,1770202246715,-500.0,0.00014703,2]
[404484668,1770202246724,-570.84614769,0.00014703,2]
[404484669,1770202246733,-411.51574304,0.00014703,2]
[404484670,1770202246742,-177.61722483,0.00014703,2]
[404484671,1770202246752,-3366.9721288,0.00014704,2]
[404484672,1770202246761,-1458.6339537,0.00014704,2]
[404484673,1770202246770,-5792.59454259,0.00014704,2]
[404484674,1770202246782,-7272.88291881,0.00014704,2]
[404484675,1770202246801,-8579.36462224,0.00014704,2]
[404484676,1770202246810,-170.00963641,0.00014795,2]
[404484677,1770202246819,-1500.0,0.00014795,2]
[404484678,1770202246829,-5687.0,0.000148,2]
[404484679,1770202246839,-500.0,0.00014818,2]
[404484680,1770202246848,-170.6512397,0.00014819,2]
[404484681,1770202246858,-221.17534,0.00015068,2]
[404484682,1770202246867,-1882.34735412,0.00015118,2]
[404484683,1770202246876,-2405.09021257,0.00015311,2]
[404484684,1770202246886,-332.78106441,0.00015342,2]
[404484685,1770202246896,-27541.0345137,0.00015362,2]
[404484686,1770202246905,-500.0,0.00015378,2]
[404484687,1770202246914,-500.0,0.00015378,2]
[404484688,1770202246924,-1000.0,0.00015378,2]
[404484689,1770202246933,-250.0,0.00015378,2]
[404484690,1770202246943,-500.0,0.00015378,2]
[404484691,1770202246953,-1000.0,0.00015378,2]
[404484692,1770202246963,-250.0,0.00015378,2]
[404484693,1770202246972,-500.0,0.00015378,2]
[404484694,1770202246982,-1000.0,0.00015378,2]
[404484695,1770202246992,-250.0,0.00015378,2]
[404484696,1770202247002,-500.0,0.00015378,2]
[404484697,1770202247011,-1000.0,0.00015378,2]
[404484698,1770202247021,-250.0,0.00015378,2]
[404484699,1770202247031,-500.0,0.00015378,2]
[404484700,1770202247040,-250.0,0.00015378,2]
[404484701,1770202247050,-1000.0,0.00015378,2]
[404484702,1770202247061,-500.0,0.00015378,2]
[404484703,1770202247070,-250.0,0.00015378,2]
[404484704,1770202247080,-1000.0,0.00015378,2]
[404484705,1770202247089,-250.0,0.00015378,2]
[404484706,1770202247099,-500.0,0.00015378,2]
[404484707,1770202247108,-1000.0,0.00015378,2]
[404484708,1770202247118,-250.0,0.00015378,2]
[404484709,1770202247129,-500.0,0.00015378,2]
[404484710,1770202247138,-1000.0,0.00015378,2]
[404484711,1770202247147,-250.0,0.00015378,2]
[404484712,1770202247157,-500.0,0.00015378,2]
[404484713,1770202247166,-1000.0,0.00015378,2]
[404484714,1770202247175,-250.0,0.00015378,2]
[404484715,1770202247185,-500.0,0.00015378,2]
[404484716,1770202247194,-500.0,0.00015378,2]
[404484717,1770202247204,-1000.0,0.00015378,2]
[404484718,1770202247213,-250.0,0.00015378,2]
[404484719,1770202247222,-500.0,0.00015378,2]
[404484720,1770202247231,-1000.0,0.00015378,2]
[404484721,1770202247241,-500.0,0.00015378,2]
[404484722,1770202247251,-500.0,0.00015378,2]
[404484723,1770202247261,-250.0,0.00015378,2]
[404484724,1770202247270,-500.0,0.00015378,2]
[404484725,1770202247281,-500.0,0.00015378,2]
[404484726,1770202247290,-250.0,0.00015378,2]
[404484727,1770202247299,-500.0,0.00015378,2]
[404484728,1770202247309,-500.0,0.00015378,2]
[404484729,1770202247318,-250.0,0.00015378,2]
[404484730,1770202247327,-500.0,0.00015378,2]
[404484731,1770202247337,-500.0,0.00015378,2]
[404484732,1770202247346,-250.0,0.00015378,2]
[404484733,1770202247356,-500.0,0.00015378,2]
[404484734,1770202247365,-500.0,0.00015378,2]
[404484735,1770202247375,-250.0,0.00015378,2]
[404484736,1770202247386,-500.0,0.00015378,2]
[404484737,1770202247396,-500.0,0.00015378,2]
[404484738,1770202247405,-250.0,0.00015378,2]
[404484739,1770202247416,-500.0,0.00015378,2]
[404484740,1770202247426,-500.0,0.00015378,2]
[404484741,1770202247435,-250.0,0.00015378,2]
[404484742,1770202247445,-500.0,0.00015378,2]
[404484743,1770202247455,-500.0,0.00015378,2]
[404484744,1770202247465,-250.0,0.00015378,2]
[404484745,1770202247475,-500.0,0.00015378,2]
[404484746,1770202247485,-250.0,0.00015378,2]
[404484747,1770202247494,-500.0,0.00015378,2]
[404484748,1770202247504,-250.0,0.00015378,2]
[404484749,1770202247513,-500.0,0.00015378,2]
[404484750,1770202247525,-250.0,0.00015378,2]
[404484751,1770202247535,-500.0,0.00015378,2]
[404484752,1770202247545,-250.0,0.00015378,2]
[404484753,1770202247555,-264.82857671,0.00015378,2]
[404484754,1770202247565,-1492.460965,0.00015411,2]
[404484755,1770202247574,-2405.09021257,0.00015708,2]
[404484756,1770202247583,-177.0,0.00015837,2]
[404484757,1770202247595,-216.42880265,0.00016,2]
[404484758,1770202247605,-1492.460965,0.0001606,2]
[404484759,1770202247614,-420.0,0.00016096,2]
[404484760,1770202247625,-2405.09021257,0.00016106,2]
[404484761,1770202247635,-1313.13868616,0.00016178,2]
[404484762,1770202247645,-151.0,0.000162,2]
[404484763,1770202247654,-277.65365296,0.00016268,2]
[404484764,1770202247666,-151.0,0.000163,2]
[404484765,1770202247676,-536.89398127,0.00016428,3]
[404484766,1770202263261,500.0,0.00013273,2]
[404484767,1770202264984,500.0,0.00013273,2]
[404484768,1770202265239,500.0,0.00013273,2]
[404484769,1770202265862,-543.57219283,0.00013821,2]
[404484770,1770202265883,-249.26945655,0.00013821,2]
[404484771,1770202268904,-250.73054345,0.00013821,2]